Cogmind - Beta 14 @@@ ROGUE MODE // 2024.09.07 @ 12:38:19 Player: Finestep Result: Self-destructed Performance ------------- Evolutions (5) 2500 Regions Visited (5) 1000 Robots Destroyed (86) 430 Value Destroyed (2445) 2445 Prototype IDs (24) 480 Alien Tech Used (0) 0 Bonus (370) 370 TOTAL SCORE: 7225 Bonus ------- High Alert Combat Kills 16 Follower Combat Kills 80 Registered with UFD 300 Friendly Fire -26 Cogmind --------- Core Integrity 615/1000 Matter 300/300 Energy 450/450 System Corruption 8% Temperature Cool (0) Movement Core (850) Ox16 Location -5/Factory Parts ------- > --- POWER (1) -------- (None) > --- PROPULSION (4) --- (None) > --- UTILITY (10) ----- High-capacity Storage Unit Energy Well Improved Melee Analysis Suite Hacking Suite > --- WEAPON (2) ------- Plasma Sword Plasma Sword > --- INVENTORY (20) --- Enhanced Fission Core Improved Medium Treads Flexi-carbon Leg Overtuned Huge Scrapsphere Advanced Cooling System Matter Compressor (250) Advanced Drone Bay (2/2) Long-range Proton Cannon Long-range Proton Cannon Heavy Plasma Cannon Gauss Rifle Gauss Rifle Mass Driver Missile Launcher CPS Tube (2) Plasma Sword DRS Beacon (Ready) Peak State ------------ > --- POWER ------------ Fission Core Light Fission Core > --- PROPULSION ------- Spiked Treads Armored Treads Wheel Wheel Overtuned Huge Scrapsphere > --- UTILITY ---------- Scrap Suit Improved Cooling System High-capacity Storage Unit Advanced Terrain Scanner Experimental Terrain Scan Processor Transport Network Coupler Improved Targeting Computer Hardened Medium Armor Plating Tower Shield Improved Shield Generator > --- WEAPON ----------- Heavy Plasma Cannon Light Cannon Light Cannon Mass Driver > --- INVENTORY -------- Improved Cooling System Energy Well Large Matter Pod Kinecellerator Improved Shield Generator Long-range Proton Cannon Long-range Proton Cannon Heavy Machine Gun Missile Launcher CPS Tube Multitool DRS Beacon [Rating: 102] Favorites ----------- Power Light Fission Core Engine Ion Engine Power Core Light Fission Core Propulsion Light Treads Treads Light Treads Leg Enhanced Armored Leg Wheel Wheel Utility High-capacity Storage Unit Device Structural Scanner Storage High-capacity Storage Unit Processor Improved Melee Analysis Suite Hackware Hacking Suite Protection Light Armor Plating Weapon Light Cannon Energy Gun Medium Laser Energy Cannon Beam Cannon Ballistic Gun Light Assault Rifle Ballistic Cannon Light Cannon Launcher Grenade Launcher Special Weapon Mining Laser Slashing Weapon Plasma Sword Build | -11 -10 -10 -7 -7 -5 ------- Run | Yrd Mat Sub Rec Scr Fac Slots Evolved 10 | . . . . . 10 Power . | . . . . . . Propulsion 2 | . . . . . 2 Utility 8 | . . . . . 8 Weapon . | . . . . . . Parts Attached 122 | 7 16 20 9 17 53 Power 11 | 1 . 3 2 1 4 Engine 5 | 1 . 3 1 . . Core 6 | . . . 1 1 4 Reactor . | . . . . . . Propulsion 28 | 2 2 1 3 8 12 Treads 13 | 2 2 1 1 7 . Leg 9 | . . . 1 . 8 Wheel 6 | . . . 1 1 4 Hover . | . . . . . . Flight . | . . . . . . Utility 34 | 2 2 2 3 1 24 Device 13 | 1 . . 2 . 10 Storage 5 | 1 1 . . 1 2 Processor 5 | . . . . . 5 Hackware 2 | . . . . . 2 Protection 9 | . 1 2 1 . 5 Artifact . | . . . . . . Weapon 49 | 2 12 14 1 7 13 Energy Gun 2 | 1 . . . 1 . Energy Cannon 8 | . . 5 . . 3 Ballistic Gun 2 | 1 . . . 1 . Ballistic Cannon 19 | . 7 4 1 3 4 Launcher 5 | . 3 1 . . 1 Special Weapon 7 | . 2 4 . 1 . Impact Weapon . | . . . . . . Slashing Weapon 6 | . . . . 1 5 Piercing Weapon . | . . . . . . Special Melee Weapon . | . . . . . . Unidentified Prototypes 5 | . . . . 1 4 Parts Lost 27 | . . 7 3 . 17 Power 7 | . . 4 1 . 2 Propulsion 7 | . . 1 1 . 5 Utility 11 | . . 1 . . 10 Weapon 2 | . . 1 1 . . Highest Loss Streak 6 | . . 2 1 . 6 To Critical Strikes 1 | . . . . . 1 Average Slot Usage (%) 93 | . 99 95 81 99 87 Engine 4 | . 14 9 1 2 . Core 5 | . . . 1 11 4 Treads 20 | . 27 27 19 22 1 Leg 2 | . . . . . 19 Wheel 2 | . . . 1 4 1 Device 8 | . 3 . 1 14 19 Storage 13 | . 14 14 14 14 9 Processor 1 | . . . . . 7 Protection 6 | . 10 13 12 . 4 Energy Cannon 1 | . . 7 . . . Ballistic Cannon 23 | . 27 19 27 27 3 Peak Build Rating 102 | 7 8 16 20 35 102 Average Rating 24 | 5 7 10 13 19 87 On Entrance 10 | . 7 8 14 11 23 Naked Turns . | . . . . . . Heaviest Build 132 | 14 24 28 29 54 132 Greatest Support 80 | 40 40 40 42 40 80 Greatest Overweight (x) 6 | . . . 1 5 6 Average Overweight (x) . | . . . . 2 . Largest Inventory Capacity 20 | 8 10 10 10 20 20 Average Capacity 14 | 7 8 10 10 19 19 Most Carried 20 | 5 10 10 10 20 20 Average Carried 13 | 2 8 8 9 19 18 Final Capacity 20 | 8 10 10 10 20 20 Final Carried 20 | 5 10 10 9 20 19 Class Distribution -------------------- 74% | Mutant 17% | Commander-Mutant 5% | Gladiator Dominant Class ---------------- Mutant | -10/Materials Mutant | -10/Subcaves Commander-Mutant | -7/Recycling Mutant | -7/Scraptown Gladiator | -5/Factory Resources | -11 -10 -10 -7 -7 -5 ----------- Run | Yrd Mat Sub Rec Scr Fac Matter Collected 3439 | 278 602 788 422 45 1304 Remotely . | . . . . . . Salvage Created 3343 | 122 507 326 622 . 1766 Parts 176 | 8 39 25 30 . 74 Haulers Intercepted 5 | . 2 . . . 3 Recyclers Shooed 5 | . . . 2 . 3 Parts Field Recycled . | . . . . . . Retrieved Matter . | . . . . . . Parts Self-Destructed 15 | . . 15 . . . Prevented . | . . . . . . Kills | -11 -10 -10 -7 -7 -5 ------- Run | Yrd Mat Sub Rec Scr Fac Combat Hostiles Destroyed 45 | . 12 14 4 . 15 Melee 11 | . . . . . 11 Cannons 29 | . 10 13 4 . 2 AOE 5 | . 2 1 . . 2 Classes Destroyed 16 | 2 7 3 2 . 2 Worker 4 | . 1 . . . 3 Builder 5 | . 1 . 3 . 1 Tunneler 4 | 3 . . . . 1 Hauler 5 | . 2 . . . 3 Recycler 14 | 1 1 . 7 . 5 Operator 5 | . 3 . . . 2 Watcher 4 | . 3 . . . 1 Swarmer 7 | . 3 4 . . . Grunt 13 | . 9 . 1 . 3 Protector 1 | . . . 1 . . Sentry 3 | . . 1 1 . 1 Hunter 8 | . . . . . 8 Programmer 3 | . . . 1 . 2 Behemoth 1 | . . . . . 1 Artisan 1 | . . 1 . . . Subdweller 9 | . . 9 . . . Best Kill Streak 5 | 3 5 3 5 . 5 Combat Bots Only 3 | . 3 3 2 . 3 Max Kills in Single Turn 2 | 1 2 1 1 . 2 Gunslinging . | . . . . . . Exploded 2 | . 1 1 . . 2 Melee 1 | . . . . . 1 Uniques/NPCs Destroyed . | . . . . . . Combat | -11 -10 -10 -7 -7 -5 -------- Run | Yrd Mat Sub Rec Scr Fac Hostile Shots Fired 538 | . 41 109 65 . 323 Missed 133 | . 8 34 17 . 74 Damage Taken 5970 | . 401 1316 237 . 4016 Core 624 | . . 211 28 . 385 Absorbed by Shields 1103 | . . . 170 . 933 Redirected to Shielding 23 | . . 23 . . . Ignored by Resistances 8 | . . 8 . . . Regen/Repaired (Parts) 147 | . 86 . . . 61 Core Remaining (%) 52 | 100 . . . 4 . Volleys Fired 205 | 9 58 78 25 . 35 Largest 4 | 2 2 2 2 . 4 Hottest 217 | 70 100 100 78 . 217 Shots Fired 404 | 18 109 139 50 . 88 Gun 18 | 18 . . . . . Cannon 358 | . 102 122 50 . 84 Launcher 19 | . 5 10 . . 4 Special 9 | . 2 7 . . . Kinetic 316 | 9 102 91 50 . 64 Thermal 65 | 9 2 38 . . 16 Explosive 19 | . 5 10 . . 4 Electromagnetic 4 | . . . . . 4 Robot Hit Streak 11 | 5 8 9 6 . 11 Robot Miss Streak 7 | 2 7 4 2 . 2 Penetration Max . | . . . . . . Secondary Targets . | . . . . . . Shots Hit Robots 281 | 10 45 69 27 . 130 Core Hits 126 | 6 28 23 13 . 56 Critical Kills 1 | . . . . . 1 Critical Parts Destroyed . | . . . . . . Critical Strikes 21 | 1 1 . 4 . 15 Burn 1 | 1 . . . . . Meltdown 1 | . . . . . 1 Blast 7 | . 1 . 4 . 2 Sever 12 | . . . . . 12 Melee Attacks 96 | . . . . . 96 Impact . | . . . . . . Slashing 96 | . . . . . 96 Piercing . | . . . . . . Sneak Attacks 8 | . . . . . 8 Combat Hostiles . | . . . . . . Follow-up Attacks 10 | . . . . . 10 Damage Inflicted 8674 | 104 1139 1269 634 . 5528 Guns 104 | 104 . . . . . Cannons 4532 | . 912 1244 634 . 1742 Explosions 698 | . 227 25 . . 446 Melee 3340 | . . . . . 3340 Ramming . | . . . . . . Kinetic 3714 | 28 912 948 634 . 1192 Thermal 777 | 76 . 296 . . 405 Explosive 606 | . 227 25 . . 354 Electromagnetic 237 | . . . . . 237 Impact . | . . . . . . Slashing 3340 | . . . . . 3340 Piercing . | . . . . . . Highest Corruption 8 | . . . 3 . 8 Average Corruption 3 | . . . 2 . 7 Corruption Purged . | . . . . . . Corruption Blocked . | . . . . . . Effects 42 | . . . 25 . 17 Message Errors 6 | . . . 4 . 2 Matter Fused 13 | . . . 9 . 4 Heat Flow Errors 3 | . . . 1 . 2 Energy Discharges 8 | . . . 6 . 2 Parts Rejected 2 | . . . 1 . 1 Data Loss (minor) 6 | . . . 1 . 5 Data Loss (major) 2 | . . . 1 . 1 Misfires 1 | . . . 1 . . Alerts 1 | . . . 1 . . Overload Shots . | . . . . . . Overflow Damage 246 | . 12 3 14 . 217 Projectiles 67 | . 12 3 14 . 38 Explosions 10 | . . . . . 10 Melee 169 | . . . . . 169 Knockbacks 27 | . 3 11 6 . 7 Impact . | . . . . . . Kinetic 25 | . 3 9 6 . 7 Secondary 2 | . . 2 . . . Self-Inflicted Damage 87 | . . 44 . . 43 Shots 4 | . . 3 . . 1 Rammed . | . . . . . . Targets Rammed . | . . . . . . Kicked . | . . . . . . Crushed . | . . . . . . Highest Temperature 425 | 110 135 214 196 . 425 Average Temperature 51 | 45 32 64 24 . 116 Received Heat Transfer 976 | . 192 448 66 . 270 Effects 2 | . . . . . 2 Energy Bleed 2 | . . . . . 2 Siege Activations . | . . . . . . Robots Corrupted 1 | . . . . . 1 Combat Hostiles . | . . . . . . Parts Fried 1 | . . . . . 1 Impact Corruptions . | . . . . . . Robots Melted 1 | . . . . . 1 Combat Hostiles . | . . . . . . Parts Melted 5 | . . . . . 5 Heat Transferred 1525 | 296 . 629 . . 600 Parts Sabotaged . | . . . . . . Parts Stolen . | . . . . . . Parts Stripped . | . . . . . . Power Chain Reactions . | . . . . . . Alert | -11 -10 -10 -7 -7 -5 ------- Run | Yrd Mat Sub Rec Scr Fac Peak Influence 439 | 20 200 . 259 . 439 Initial 115 | . 13 . 115 . . Average 83 | 7 63 . 56 . 146 Maximum Alert Level 2 | . 1 . 1 . 2 Low Security (%) 87 | 100 98 . 95 . 66 Level 1 9 | . 1 . 4 . 24 Level 2 2 | . . . . . 9 Level 3 . | . . . . . . Level 4 . | . . . . . . Level 5 . | . . . . . . High Security . | . . . . . . Max Security . | . . . . . . Squads Dispatched 8 | . 2 . . . 6 Investigation 1 | . 1 . . . . Extermination 1 | . . . . . 1 Reinforcement 6 | . 1 . . . 5 Assault . | . . . . . . Garrison . | . . . . . . Intercept . | . . . . . . Searches Triggered . | . . . . . . Construction Impeded . | . . . . . . Haulers Reinforced 1 | . . . . . 1 Active Scanning Responses . | . . . . . . Cargo Convoy Interrupts . | . . . . . . Stealth | -11 -10 -10 -7 -7 -5 --------- Run | Yrd Mat Sub Rec Scr Fac Distress Signals 1 | . 1 . . . . Communications Jammed . | . . . . . . Distress Signals . | . . . . . . Times Spotted 78 | . 19 28 5 . 26 Peak Tracking Total 7 | . 4 4 1 . 7 Tactical Retreats 7 | . 1 6 . . . Traps | -11 -10 -10 -7 -7 -5 ------- Run | Yrd Mat Sub Rec Scr Fac Traps Triggered 2 | . . . . . 2 Indirectly . | . . . . . . Trap Hack Attempts . | . . . . . . Triggered . | . . . . . . Disarmed . | . . . . . . Reprogrammed . | . . . . . . Reused . | . . . . . . Traps Extracted . | . . . . . . Installed . | . . . . . . Triggered 2 | . . 2 . . . Machines | -11 -10 -10 -7 -7 -5 ---------- Run | Yrd Mat Sub Rec Scr Fac Machines Disabled 12 | . . 2 . . 10 Max in Single Turn 8 | . . 1 . . 8 Machines Repaired . | . . . . . . Machines Dismantled . | . . . . . . Machines Sabotaged . | . . . . . . Overloaded Fab Kills . | . . . . . . Hacking | -11 -10 -10 -7 -7 -5 --------- Run | Yrd Mat Sub Rec Scr Fac Machines Accessed 29 | . 9 3 13 2 2 Terminals 13 | . 6 . 6 . 1 Fabricators 1 | . . . . . 1 Repair Stations 1 | . 1 . . . . Recycling Units 9 | . 2 . 7 . . Scanalyzers . | . . . . . . Garrison Access . | . . . . . . Total Hacks 78 | . 29 3 37 5 4 Successful 39 | . 16 3 13 5 2 Failed 39 | . 13 . 24 . 2 Catastrophic 6 | . 1 . 5 . . Database Lockouts . | . . . . . . Manual 29 | . 12 . 15 . 2 Terminals 35 | . 16 . 17 . 2 Fabricators 2 | . . . . . 2 Repair Stations 6 | . 6 . . . . Recycling Units 27 | . 7 . 20 . . Scanalyzers . | . . . . . . Garrison Access . | . . . . . . Terminal Hacks 21 | . 10 3 2 5 1 Record 4 | . . . . 4 . Part Schematic 1 | . 1 . . . . Robot Schematic 2 | . 2 . . . . Prototype ID Bank 1 | . 1 . . . . Open Door 2 | . . 1 . 1 . Branch Access Points 1 | . . . . . 1 Unreport Threat 2 | . 1 . 1 . . Locate Traps 2 | . 2 . . . . Hauler Manifests 1 | . 1 . . . . Zone Layout 3 | . 2 . 1 . . Derelict Proto ID Bank 1 | . . 1 . . . Release Object 1 | . . 1 . . . Fabricator Hacks 1 | . . . . . 1 Build 1 | . . . . . 1 Repair Station Hacks 3 | . 3 . . . . Scan Component 2 | . 2 . . . . Repair 1 | . 1 . . . . Recycling Unit Hacks 5 | . 1 . 4 . . Retrieve Components 5 | . 1 . 4 . . Scanalyzer . | . . . . . . Garrison Access Hacks . | . . . . . . Unauthorized Hacks 7 | . 1 . 6 . . Terminals 1 | . . . 1 . . Botnet 1 | . . . 1 . . Fabricators . | . . . . . . Repair Stations . | . . . . . . Recycling Units 6 | . 1 . 5 . . Tunnel 6 | . 1 . 5 . . Scanalyzers . | . . . . . . Garrison Access . | . . . . . . Data Cores Recovered 2 | . 2 . . . . Used . | . . . . . . Hacking Detections 22 | . 9 . 11 . 2 Full Trace Events 7 | . . . 7 . . Feedback Events 2 | . . . 2 . . Corruption 2 | . . . 2 . . Feedback Blocked . | . . . . . . Robot Schematics Acquired 2 | . 2 . . . . Robots Built . | . . . . . . Authchips . | . . . . . . Time . | . . . . . . Total Robot Build Rating . | . . . . . . Part Schematics Acquired 1 | . 1 . . . . Parts Built . | . . . . . . Authchips . | . . . . . . Time 69 | . . . . . 69 Total Part Build Rating . | . . . . . . Parts Repaired 1 | . 1 . . . . Time 36 | . 36 . . . . Parts Recycled . | . . . . . . Recycled Matter . | . . . . . . Retrieved Matter . | . . . . . . Retrieved Components 4 | . 1 . 3 . . Parts Scanalyzed . | . . . . . . Part Schematics Acquired . | . . . . . . Parts Damaged . | . . . . . . Bothacking | -11 -10 -10 -7 -7 -5 ------------ Run | Yrd Mat Sub Rec Scr Fac Used RIF Installer . | . . . . . . Robots Hacked . | . . . . . . Non-combat . | . . . . . . Combat . | . . . . . . Robot Hacks Applied . | . . . . . . Relay Couplers Released . | . . . . . . Fabnet Peak Effective % . | . . . . . . Robots Rewired 6 | . . . 6 . . Allies Hacked . | . . . . . . Hacks Repelled . | . . . . . . Allies | -11 -10 -10 -7 -7 -5 -------- Run | Yrd Mat Sub Rec Scr Fac Total Allies 6 | . . . 6 . . Largest Group 6 | . . . 6 3 3 Highest-Rated Group 174 | . . . 174 82 82 Highest-Rated Ally 40 | . . . 40 40 40 Total Orders 1 | . . . . . 1 ROAM 1 | . . . . . 1 Ally Attacks 28 | . . . 25 . 3 Total Damage 799 | . . . 765 . 34 Kills 2 | . . . 2 . . Allies Corrupted . | . . . . . . Allies Melted . | . . . . . . Intel | -11 -10 -10 -7 -7 -5 ------- Run | Yrd Mat Sub Rec Scr Fac Robot Analysis Total . | . . . . . . Derelict Logs Recovered 2 | . . . . 2 . Drone Launches . | . . . . . . Drone Recoveries . | . . . . . . Exploration | -11 -10 -10 -7 -7 -5 ------------- Run | Yrd Mat Sub Rec Scr Fac Turns Passed 11908 | 139 1572 2204 2217 4196 1580 Spaces Moved 6098 | 64 809 1179 1206 1999 841 Core 3 | 3 . . . . . Treads 4066 | 61 809 1179 965 1052 . Legs 721 | . . . . . 721 Wheels 1308 | . . . 241 947 120 Hover . | . . . . . . Flight . | . . . . . . Fastest Speed 50 | 50 160 160 95 90 76 Average Speed 170 | 154 160 160 170 198 133 Slowest Speed 360 | 160 160 160 240 360 330 Overloaded Moves . | . . . . . . Propulsion Burnouts . | . . . . . . Robots Hopped . | . . . . . . Cave-ins Triggered . | . . . . . . Exploration Rate (%) 60 | 4 97 46 99 95 21 Regions Visited 5 Branch Regions 3 Pre-discovered Areas 7 | . 1 . 5 1 . Known Exits Taken . | . . . . . . Unknown Exits Taken 5 | 1 1 1 1 1 . Scrap Searched 11 | . . 6 . 5 . Spaces Dug 14 | . 8 1 . . 5 Terrain Destroyed 127 | . 35 31 6 . 55 Melee 5 | . . . . . 5 Projectile 21 | . 2 4 6 . 9 AOE 101 | . 33 27 . . 41 Terrain Rammed . | . . . . . . Walls Destroyed . | . . . . . . Machines Disabled . | . . . . . . Actions | -11 -10 -10 -7 -7 -5 --------- Run | Yrd Mat Sub Rec Scr Fac Total 7056 | 84 971 1343 1313 2242 1103 Wait 328 | . 71 45 4 176 32 Move 6093 | 63 808 1178 1205 1998 841 Hop . | . . . . . . Pick Up 78 | 5 9 10 . 23 31 Fast Attach 65 | 7 4 6 8 12 28 Attach 23 | . . 4 1 2 16 Detach 5 | . . . . 1 4 Swap 34 | . 12 10 . 3 9 Drop 76 | . 9 11 4 27 25 Fire 205 | 9 58 78 25 . 35 Melee 82 | . . . . . 82 Ram . | . . . . . . Kick . | . . . . . . Crush . | . . . . . . Escape Stasis . | . . . . . . Rewire 66 | . . . 66 . . Trap . | . . . . . . Miscellaneous 1 | . . 1 . . . Route ------- -11/Scrapyard -10/Materials (discovered 5 exits: [*Mat x3] / [*Min] / *Sub) -10/Subcaves (discovered 3 exits: [*Mat x2] / *Rec) -7/Recycling (discovered 2 exits: *Fac / *Scr) -7/Scraptown (discovered 2 exits: *Fac x2) -5/Factory (discovered 3 exits: [*Fac] / Upp x2) History --------- Turn | Location | Event 32 | -11/Scrapyard | Discovered new exit (range 14) 140 | -11/Scrapyard | Entered Materials 301 | -10/Materials | Build established: Mutant 468 | -10/Materials | Discovered new exit (range 16) 707 | -10/Materials | Discovered new exit (range 16) 811 | -10/Materials | Discovered new exit (range 13) 1021 | -10/Materials | Discovered new exit (range 8) 1384 | -10/Materials | Repaired Broken Lgt. Treads 1702 | -10/Materials | Discovered new exit (range 7) 1712 | -10/Materials | Entered Subcaves 1989 | -10/Subcaves | Ambushed by Subdweller buried in earth 2111 | -10/Subcaves | Discovered new exit (range 14) 2307 | -10/Subcaves | Released subatomizers from SUBCON Basin 2599 | -10/Subcaves | Visited 4L-MR0's lab 2610 | -10/Subcaves | Core integrity fell below 50% 2735 | -10/Subcaves | Found Tower Shield 2970 | -10/Subcaves | Discovered new exit (range 13) 3415 | -10/Subcaves | Discovered new exit (range 8) 3431 | -10/Subcaves | Ambushed by Subdweller buried in earth 3914 | -10/Subcaves | Core integrity fell below 20% 3916 | -10/Subcaves | Entered Recycling 4415 | -7/Recycling | Build established: Commander-Mutant 4415 | -7/Recycling | Discovered new exit (range 5) 6098 | -7/Recycling | Scanned before Scraplab entrance 6109 | -7/Recycling | Discovered new exit (range 11) 6112 | -7/Recycling | Entered Scraplab 6133 | -7/Recycling | Entered Scraptown 6133 | -7/Scraptown | Accompanied by 3 allies 6133 | -7/Scraptown | System corruption cleaned by C-Scrubber 6435 | -7/Scraptown | Build established: Mutant 6441 | -7/Scraptown | Visited IN-MT5's Study 6551 | -7/Scraptown | Visited Spacefarers 6629 | -7/Scraptown | Visited SPCMW 6673 | -7/Scraptown | Visited Red Mages 7088 | -7/Scraptown | Visited Artisan Demo Area 7178 | -7/Scraptown | Heard Great Nut preacher, LISTEN AND RECITE! 7186 | -7/Scraptown | Visited Junk Repository 7264 | -7/Scraptown | Scanned Subdweller tech in exchange for log data 7269 | -7/Scraptown | Learned location of Warlord (-5) 7278 | -7/Scraptown | Learned 8 Research zone layouts 7297 | -7/Scraptown | Discovered new exit (range 13) 7946 | -7/Scraptown | Visited Junk Repository 7981 | -7/Scraptown | Visited UFD Registry 7981 | -7/Scraptown | Registered with UFD as "Thunderbay" 8096 | -7/Scraptown | Visited Abandonware Association 8147 | -7/Scraptown | Learned abandonware demo "KABOOM.EXE" 8313 | -7/Scraptown | Visited Curators Association 8790 | -7/Scraptown | Visited Infowarlord's Domain 8808 | -7/Scraptown | Found Exp. Terrain Scan Processor 8973 | -7/Scraptown | Visited Research Penetration Think Tank 9036 | -7/Scraptown | Visited Derelict Rescue Squad 9075 | -7/Scraptown | Found DRS Beacon 9152 | -7/Scraptown | Visited Supply Room 9334 | -7/Scraptown | Visited Sword Containment 9437 | -7/Scraptown | Visited LU-1G1's Boring Crew 9565 | -7/Scraptown | Visited Modified Component R&D 10153 | -7/Scraptown | Found Scrap Suit 10263 | -7/Scraptown | Discovered new exit (range 3) 10329 | -7/Scraptown | Entered Factory 10329 | -5/Factory | Accompanied by 3 allies 10329 | -5/Factory | Evolved 10 slots: Propulsion x2, Utility x8 10332 | -5/Factory | Attached Tower Shield, gained temporary slots: Power, Propulsion x2, Utility x2, Weapon x2 10488 | -5/Factory | Spotted B-75 Beast 10530 | -5/Factory | Destroyed B-75 Beast 10881 | -5/Factory | Identified exit to Upper Caves 10925 | -5/Factory | Discovered new exit (range 6) 11233 | -5/Factory | Build established: Gladiator 11733 | -5/Factory | Lost 4 parts (1p3u) 11855 | -5/Factory | Lost 3 parts (1n2u) 11909 | -5/Factory | Self-destructed Last Messages --------------- 11898_ Penetrated by Slug. 11899_ Neutrino Reactor explodes. 11899_ Phase Shifter destroyed. 11899_ Destroyed Phase Shifter. 11899_ W-25 Informer destroyed. 11899_ Emergency Access malfunctions. 11900_ Penetrated by Slug. 11902_ Y-64 Sentinel destroyed. 11904_ Penetrated by Slug. 11904_ Critical hit (Destroy). 11904_ Enh. Armored Leg destroyed. 11904_ Knocked back. 11906_ Penetrated by Slug. 11906_ Flexi-carbon Leg destroyed. 11906_ Enh. Armored Leg destroyed. 11906_ Y-64 Sentinel Imp. Treads severed. 11908_ Penetrated by Slug. 11908_ Enh. Fission Core destroyed. 11908_ Penetrated by Slug. 11908_ Enh. Armored Leg destroyed. Map ----- +----------------------------------------------------+ | # # #?????????????????????????????? | | # # " ""??????????????????????????????? | | # # " ""#?#???????????????????????????? | | # # " ""#??#??????????????????????????? | | # # "" Y"#?????????????????????????????? | | + += " ""#???#?????????????????????????? | | # # ""#????????#????????????????????? | | # # ""#?????????????????????????????? | | # # #??#??????????????????????????? | | # # #??#??????????????????????????? | | # # ##????????????????????????????? | | + # #?????????????????????????????? | | # ##############??#??????????????????????????? | | # # #???????##????????????????????????? | | # #""" ##???###??????????????????????????? | | # #"Y !#????#????????????????????????????? | | # #"" #???#?????????????????????????????? | | # %#* #????????#??????>?????????????????? | | # %# %""" #?????????????????????????????????? | | / / %""" #??????#??????????????????????????? | | # #[ """ #?#?????#?#???????????????????????? | | # #% [ #???????#?????###?????????????????? | | # #################??????# #?????????????????? | | # # ####???# #?????????????????? | | # # """" #;##### ###???????????????? | | # """"# @Y #???????????????? | | # + """"#% % #???????????????? | | # # """"#% #???????????????? | | ##### # """"# #???????????????? | | ???##+## # = """"# ! #???????????????? | | ? ??? # # !;* !%= #???????????????? | | ????? # # !/%= [*= ; ?????????????? | | ???? # ##########! !! H ???????????? | | ????? / #?????#??# !! # ?????????? | | ???? # #?#??????#! !! #? ????????? | | ????? # #???##???# #?? ????????? | | #???##?# #????????# #???? ?????????? | | ????? ?# #????????# #????? ?????????? | | ???????# #????????# #???????????????? | | ???????# #????????# #???????????????? | | ???????+ #????????######## ###???????????????? | | ???????? ?????????????????##?????????????????? | | ?????????????????????????????????????????????????? | | ?????????????????????????????????????????????????? | | ?????????????????????????????????????????????????? | | ?????????????????????????????????????????????????? | | ?????????????????????????????????????????????????? | | ?????????????????????????????????????????????????? | | ?????????????????????????????????????????????????? | | ?????????????????????????????????????????????????? | +----------------------------------------------------+ Best States ------------- Heat Dissipation 94 Energy Generation 31 Energy Capacity 700 Matter Stores 300 Matter Capacity 300 Sight Range 16 Terrain Scan Range 20 Terrain Scan Density 1010 Armor Coverage 2225 Resistance: KI 10 Core Shielding 20 Phase Shifting 5 Evasion (%) 60 Targeting Accuracy 6 Melee Accuracy 12 Recoil Reduction 2 Kinecelleration 30 Offensive Hacking 10 Defensive Hacking 10 Item Schematics ----------------- Lrg. Storage Unit | -10/Materials | Hacked Robot Schematics ------------------ M-13 Machinist | -10/Materials | Hacked O-16 Technician | -10/Materials | Hacked Fabricated ------------ Nothing Alien Tech Used ----------------- None Achievements -------------- None Challenges ------------ None Game ------ Seed FrostBackupNetwork Manual? 0 Play Time 00:57:51 Cumulative 693.0 hours Start 2024.09.07 @ 11:40:55 End 2024.09.07 @ 12:38:19 Sessions 1 Manual Loads 0 Difficulty Rogue Special Mode None Game No. 434 Rogue 434 Adventurer 0 Explorer 0 Win Type - Total 9 Types 6/0/1/1/1/0/0/0/0 Lore% 66 Gallery% 84 Achievement% 75 Wizard Run 0 Options --------- Layout 0 ASCII 0 Keyboard 0 Movement Mouse Keybinds 1 Fullscreen 2 Font 24/Smallcaps Map View 76x50 Zoom Use 0% Tactical HUD 1 Map Filters NONE Filters NONE Steam 1 RUN: f2ee807b-e372-4122-963a-5f2c587f6097